bitfinex/quotes_SOLUSD_20250903
["timestamp","ask_amount","ask_price","bid_price","bid_amount"]
[1756916397567,3.9570253,211.21,211.2,13.59559401]
[1756916398267,0.66,211.23,211.2,4.73482677]
[1756916398581,3.9570253,211.24,211.2,4.73482677]
[1756916398874,0.66,211.23,211.2,4.73482677]
[1756916400491,3.2970253,211.21,211.16,3.2970253]
[1756916400667,3.2970253,211.18,211.15,4.73594295]
[1756916400978,3.2970253,211.19,211.16,13.59559401]
[1756916401176,3.9570253,211.19,211.16,13.59559401]
[1756916401771,3.2970253,211.18,211.16,13.59559401]
[1756916402080,3.2970253,211.18,211.16,4.735588]
[1756916402283,0.66,211.19,211.16,4.735588]
[1756916402284,3.9570253,211.19,211.16,4.735588]
[1756916402787,3.2970253,211.17,211.13,13.59559401]
[1756916402988,3.2970253,211.16,211.13,13.59559401]
[1756916403167,3.9570253,211.16,211.13,13.59559401]
[1756916403961,3.2970253,211.16,211.12,13.59559401]
[1756916404563,3.2970253,211.16,211.12,14.29559401]
[1756916404774,3.2970253,211.16,211.13,0.7]
[1756916404971,3.2970253,211.16,211.12,13.59559401]
[1756916405176,3.2970253,211.17,211.12,13.59559401]
[1756916405383,26.0,211.19,211.13,0.7]
[1756916405660,3.2970253,211.18,211.13,3.9970253]
[1756916406293,3.2970253,211.18,211.15,13.59559401]
[1756916407665,3.2970253,211.18,211.15,14.29559401]
[1756916408061,3.2970253,211.19,211.15,14.29559401]
[1756916408457,3.2970253,211.19,211.15,13.59559401]
[1756916408772,3.2970253,211.18,211.15,13.59559401]
[1756916408962,3.2970253,211.18,211.15,19.03154732]
[1756916409669,0.06,211.19,211.18,13.59559401]
[1756916409980,0.06,211.19,211.17,3.2970253]
[1756916410171,0.06,211.19,211.18,14.29559401]
[1756916411393,0.06,211.19,211.18,19.03089091]
[1756916411979,0.06,211.19,211.18,22.32791621]
[1756916412806,3.4970253,211.25,211.19,0.28432314]
[1756916412807,0.2,211.25,211.19,0.28432314]
[1756916412983,0.2,211.25,211.24,3.2970253]
[1756916413308,0.2,211.25,211.24,8.7109772]
[1756916413494,0.2,211.25,211.24,59.20657121]
[1756916414009,0.2,211.25,211.21,16.89261931]
[1756916414194,0.2,211.25,211.21,17.57261931]
[1756916414510,0.2,211.25,211.21,14.27559401]
[1756916415314,0.2,211.25,211.23,13.59559401]
[1756916416326,0.2,211.25,211.23,4.7340026]
[1756916416483,0.2,211.25,211.24,17.57261931]
[1756916418615,0.2,211.25,211.24,22.30657121]
[1756916419122,0.2,211.25,211.24,18.32954591]
[1756916419427,0.2,211.25,211.24,55.90954591]
[1756916422102,0.2,211.25,211.24,55.22954591]
[1756916422303,0.2,211.25,211.24,55.90954591]
[1756916422515,0.2,211.25,211.24,59.20657121]
[1756916424350,0.2,211.25,211.24,59.49089435]
[1756916425616,0.2,211.25,211.24,61.33246968]
[1756916427863,0.2,211.25,211.24,63.22950793]
[1756916428937,0.06,211.28,211.25,0.28432314]
[1756916429257,0.06,211.28,211.27,18.73419464]
[1756916429633,0.06,211.28,211.27,19.41419464]
[1756916430250,1e-08,211.28,211.27,20.26651134]
[1756916430558,1e-08,211.29,211.28,0.28432314]
[1756916430772,0.2,211.3,211.29,39.87991715]
[1756916430773,1e-08,211.3,211.29,39.87991715]
[1756916430943,1e-08,211.3,211.29,50.99928922]
[1756916431466,1e-08,211.31,211.3,0.28432314]
[1756916431650,1e-08,211.32,211.31,13.87991715]
[1756916431865,1e-08,211.32,211.31,20.26640382]
[1756916432162,1e-08,211.34,211.33,39.59559401]
[1756916432350,1e-08,211.34,211.33,45.58635008]
[1756916432558,1e-08,211.34,211.33,46.26635008]
[1756916432749,1e-08,211.34,211.33,83.14635008]
[1756916432950,1e-08,211.34,211.33,87.87828591]
[1756916433564,1e-08,211.36,211.34,13.87991715]
[1756916433774,1e-08,211.39,211.38,39.87991715]
[1756916433969,1e-08,211.41,211.38,81.89851778]
[1756916434143,1e-08,211.41,211.4,18.73419464]
[1756916434455,1e-08,211.42,211.41,19.01851778]
[1756916434660,1e-08,211.42,211.41,24.47554431]
[1756916435033,1e-08,211.42,211.41,29.20568952]
[1756916435233,1e-08,211.42,211.41,24.42866299]
[1756916437263,1e-08,211.42,211.41,61.28866299]
[1756916437759,1e-08,211.42,211.41,139.88866299]
[1756916439362,1e-08,211.42,211.41,144.64248167]
[1756916439976,1e-08,211.42,211.41,107.78248167]
[1756916440289,1e-08,211.42,211.41,134.07006236]
[1756916440485,0.68000001,211.42,211.41,13.59559401]
[1756916440644,0.68000001,211.42,211.39,1.89559984]
[1756916440979,0.68,211.41,211.39,13.59559401]
[1756916441188,0.68,211.4,211.39,13.59559401]
[1756916441485,5.81860063,211.4,211.37,50.45559401]
[1756916441684,0.68,211.39,211.37,13.59559401]
[1756916441848,1e-08,211.42,211.39,13.59559401]
[1756916442048,1e-08,211.42,211.4,36.86]
[1756916442701,1e-08,211.42,211.4,50.45559401]
[1756916442702,0.68,211.41,211.4,50.45559401]
[1756916443187,0.68,211.41,211.4,55.18596297]
[1756916443384,1e-08,211.42,211.41,13.59559401]
[1756916443706,1e-08,211.42,211.41,18.73419464]
[1756916443880,1e-08,211.42,211.41,36.86]
[1756916444586,1e-08,211.42,211.41,41.59014521]
[1756916445971,1e-08,211.42,211.41,61.32866299]
[1756916447572,1e-08,211.42,211.41,87.32866299]
[1756916449886,1e-08,211.42,211.41,81.47006236]
[1756916450100,1e-08,211.42,211.41,55.16573922]
[1756916450735,5.81860064,211.42,211.41,13.59559401]
[1756916450902,5.81860064,211.42,211.41,50.43559401]
[1756916451532,5.81860064,211.42,211.41,13.59559401]
[1756916453442,5.81860064,211.42,211.4,50.43559401]
[1756916453626,5.81860063,211.41,211.4,50.43559401]
[1756916454004,5.81860063,211.41,211.35,4.73126964]
[1756916454211,0.68,211.4,211.36,13.59559401]
[1756916454415,0.68,211.39,211.33,10.55044073]
[1756916454728,0.68,211.38,211.34,50.43559401]
[1756916454936,0.68,211.37,211.34,50.43559401]
[1756916455103,0.68,211.39,211.34,50.43559401]
[1756916455307,26.0,211.41,211.34,50.43559401]
[1756916455308,5.13860063,211.35,211.34,55.16713549]
[1756916456599,5.81860063,211.35,211.33,13.59559401]
[1756916456823,5.13860063,211.34,211.33,13.59559401]
[1756916457201,5.81860063,211.34,211.33,13.59559401]
[1756916457401,5.13860063,211.35,211.34,13.59559401]
[1756916457625,5.13860063,211.35,211.33,13.59559401]
[1756916457808,0.68,211.38,211.33,13.59559401]
[1756916458006,5.13860063,211.34,211.33,13.59559401]
[1756916460309,5.81860063,211.34,211.33,13.59559401]
[1756916460504,5.81860063,211.34,211.31,13.59559401]
[1756916460841,26.00000001,211.42,211.3,13.59559401]
[1756916460842,5.13860063,211.32,211.3,13.59559401]
[1756916461044,5.81860063,211.31,211.29,0.03]
[1756916461212,5.13860063,211.3,211.29,0.03]
[1756916461407,5.81860063,211.3,211.29,0.03]
[1756916463012,10.55120829,211.3,211.29,0.03]
[1756916463222,26.0,211.27,211.26,0.03]
[1756916463412,31.13860063,211.27,211.26,0.03]
[1756916463718,31.81860063,211.27,211.26,0.03]
[1756916464432,36.55188031,211.27,211.26,0.03]
[1756916464824,36.55188031,211.27,211.24,0.03]
[1756916465008,5.13860063,211.25,211.24,0.03]
[1756916465414,5.81860063,211.25,211.24,0.03]
[1756916465915,26.0,211.22,211.19,0.03]
[1756916466125,5.13860063,211.2,211.19,0.03]
[1756916466629,5.81860063,211.2,211.19,0.03]
[1756916468239,15.69204974,211.2,211.19,0.03]
[1756916468922,26.0,211.17,211.16,0.03]
[1756916469120,68.01860063,211.17,211.16,0.03]
[1756916469318,68.69860063,211.17,211.16,0.03]
[1756916470127,31.81860063,211.17,211.16,0.03]
[1756916470325,68.69860063,211.17,211.16,0.03]
[1756916471139,73.43412177,211.17,211.16,0.03]
[1756916471340,36.55412177,211.17,211.16,0.03]
[1756916471634,73.43412177,211.17,211.16,0.03]
[1756916472439,73.43412177,211.17,211.14,0.03]
[1756916472638,5.13860063,211.15,211.14,0.03]
[1756916473141,5.84860063,211.15,211.14,0.03]
[1756916473439,5.13860063,211.15,211.14,0.03]
[1756916473828,5.13860063,211.15,211.14,0.74]
[1756916474337,5.13860063,211.18,211.14,5.47619399]
[1756916474532,5.13860063,211.18,211.16,13.59559401]
[1756916474723,5.13860063,211.19,211.17,0.71]
[1756916474923,0.71,211.27,211.18,13.59559401]
[1756916475128,36.88,211.26,211.19,0.71]
[1756916475441,5.13860063,211.2,211.19,0.71]
[1756916475634,11.82897531,211.2,211.19,0.71]
[1756916475834,26.71,211.25,211.19,0.71]
[1756916475835,0.71,211.25,211.19,0.71]
[1756916476137,11.82897531,211.2,211.19,5.44507268]
[1756916476731,29.91752084,211.34,211.2,13.59559401]
[1756916476942,11.82897531,211.23,211.2,14.30559401]
[1756916477132,0.06,211.3,211.22,13.59559401]
[1756916477333,0.06,211.3,211.24,13.59559401]
[1756916477519,11.88897531,211.3,211.24,25.42456932]
[1756916477725,11.88897531,211.3,211.25,12.53897531]
[1756916477935,11.88897531,211.3,211.26,14.30559401]
[1756916478121,11.88897531,211.3,211.28,13.59559401]
[1756916478328,11.88897531,211.3,211.29,14.30559401]
[1756916478549,11.88897531,211.3,211.29,13.59559401]
[1756916479552,0.06,211.3,211.29,13.59559401]
[1756916479838,11.88897531,211.3,211.29,13.59559401]
[1756916480017,11.88897531,211.3,211.29,19.03842566]
[1756916480547,0.06,211.3,211.29,19.03842566]
[1756916481034,11.88897531,211.3,211.29,14.30559401]
[1756916481628,11.88897531,211.3,211.29,19.03842566]
[1756916483241,11.88897531,211.3,211.29,14.30559401]
[1756916483423,11.88897531,211.3,211.25,13.59559401]
[1756916483622,11.82897531,211.28,211.25,14.30559401]
[1756916483920,0.06,211.3,211.27,13.59559401]
[1756916484235,11.82897531,211.29,211.28,14.30559401]
[1756916484855,0.06,211.3,211.28,14.30559401]
[1756916485151,0.06,211.3,211.29,0.71]
[1756916485344,0.06,211.3,211.29,14.30559401]
[1756916486052,11.88897531,211.3,211.29,13.59559401]
[1756916486425,11.88897531,211.3,211.29,14.30559401]
[1756916487244,0.06,211.3,211.29,19.03842566]
[1756916490055,0.06,211.3,211.29,27.03003327]
[1756916490456,0.06,211.3,211.29,19.3227488]
[1756916490846,0.06,211.3,211.29,27.31435641]
[1756916491557,1e-08,211.3,211.29,27.31435641]
[1756916491755,1e-08,211.31,211.3,18.61252481]
[1756916491957,1e-08,211.31,211.3,64.19413242]
[1756916492348,1e-08,211.31,211.3,55.91820167]
[1756916492547,1e-08,211.31,211.3,19.03820167]
[1756916493161,1e-08,211.31,211.3,18.32820167]
[1756916493542,7.99160762,211.31,211.3,18.32820167]
[1756916493740,1e-08,211.31,211.3,27.02980928]
[1756916494048,1e-08,211.31,211.3,27.31413242]
[1756916494763,1e-08,211.31,211.3,19.32252481]
[1756916495061,1e-08,211.31,211.3,27.31413242]
[1756916497473,1e-08,211.31,211.3,22.60948219]
[1756916497973,3.28695739,211.31,211.3,13.59559401]
[1756916498181,1e-08,211.31,211.3,13.59559401]
[1756916498338,1e-08,211.31,211.3,14.30559401]
[1756916499276,1e-08,211.31,211.3,51.30559401]
[1756916499578,1e-08,211.31,211.3,54.59255139]
[1756916499869,1e-08,211.31,211.3,56.03820167]
[1756916500446,1e-08,211.31,211.3,59.32515905]
[1756916501470,1e-08,211.31,211.3,22.32515905]
[1756916501677,1e-08,211.31,211.3,59.32515905]
[1756916501878,1e-08,211.31,211.3,56.03820167]
[1756916502171,1e-08,211.31,211.3,59.32515905]
[1756916502372,1e-08,211.31,211.3,60.17739511]
[1756916502742,0.06,211.35,211.33,39.87991715]
[1756916502955,1e-08,211.35,211.34,54.16687453]
[1756916503162,1e-08,211.35,211.34,54.84687453]
[1756916503771,1e-08,211.35,211.34,59.57858646]
[1756916504152,1e-08,211.35,211.34,22.57858646]
[1756916504446,1e-08,211.35,211.34,59.55858646]
[1756916505269,1e-08,211.36,211.35,13.87991715]
[1756916505462,1e-08,211.36,211.35,17.84687453]
[1756916505968,1e-08,211.36,211.35,22.57836258]
[1756916507251,1e-08,211.36,211.35,85.53836258]
[1756916508277,1e-08,211.36,211.35,18.32708206]
[1756916508483,1e-08,211.36,211.35,55.26708206]
[1756916510483,1e-08,211.36,211.35,18.32708206]
[1756916510671,3.99695739,211.36,211.35,13.59559401]
[1756916510876,3.99695739,211.36,211.35,50.51559401]
[1756916511168,3.99695739,211.36,211.35,13.59559401]
[1756916513983,3.28695739,211.36,211.35,13.59559401]
[1756916514169,3.99695739,211.36,211.35,13.59559401]
[1756916514588,0.71000001,211.36,211.35,13.59559401]
[1756916514988,3.99695739,211.36,211.35,13.59559401]
[1756916516268,3.28695739,211.36,211.35,13.59559401]
[1756916516468,1e-08,211.36,211.35,13.59559401]
[1756916516687,3.28695739,211.36,211.35,13.59559401]
[1756916519313,3.99695739,211.36,211.29,0.03]
[1756916519613,5.44132705,211.36,211.31,13.59559401]
[1756916519797,0.71,211.35,211.31,13.59559401]
[1756916519996,0.71,211.34,211.31,13.59559401]
[1756916520212,5.44132705,211.36,211.31,13.59559401]
[1756916520515,5.44151593,211.35,211.3,13.59559401]
[1756916520695,0.71,211.34,211.3,13.59559401]
[1756916520897,3.28695738,211.31,211.3,50.45559401]
[1756916521094,3.28695738,211.31,211.3,13.59559401]
[1756916522908,3.28695738,211.31,211.3,13.62559401]
[1756916524119,1e-08,211.36,211.3,19.03820167]
[1756916524412,3.28695738,211.35,211.32,13.59559401]
[1756916524591,3.28695738,211.35,211.33,0.68]
[1756916524984,3.28695738,211.34,211.32,18.32753337]
[1756916525181,3.28695738,211.34,211.32,13.59559401]
[1756916525386,3.28695738,211.33,211.32,13.59559401]
[1756916526297,3.99695738,211.33,211.3,0.03]
[1756916526608,3.28695738,211.31,211.3,0.03]
[1756916526807,8.01934108,211.31,211.3,0.03]
[1756916527003,8.72934108,211.31,211.3,0.03]
[1756916527698,5.4423837,211.31,211.29,0.03]
[1756916527902,3.28695738,211.3,211.29,0.03]
[1756916529183,3.99695738,211.3,211.29,0.03]
[1756916529379,3.28695738,211.3,211.29,0.03]
[1756916529695,3.99695738,211.3,211.29,0.03]
[1756916529897,8.72956504,211.3,211.29,0.03]
[1756916531405,34.72956504,211.3,211.29,0.03]
[1756916532383,26.0,211.3,211.29,0.03]
[1756916532710,29.28695738,211.3,211.29,0.03]
[1756916534092,3.28695738,211.3,211.29,0.03]
[1756916534612,37.71,211.33,211.29,0.03]
[1756916534613,37.0,211.33,211.29,0.03]
[1756916534818,3.28695738,211.31,211.29,0.73]
[1756916535015,3.28695738,211.31,211.3,14.29559401]
[1756916535624,4.73130134,211.36,211.3,14.29559401]
[1756916535803,3.28695738,211.31,211.3,14.29559401]
[1756916537524,3.28695738,211.31,211.29,0.03]
[1756916537525,0.71,211.31,211.29,0.03]
[1756916537712,30.73168729,211.35,211.29,0.03]
[1756916538012,3.28695738,211.3,211.29,0.03]
[1756916539287,37.02,211.34,211.29,0.73]
[1756916539488,3.28695738,211.3,211.29,0.73]
[1756916539713,3.28695738,211.3,211.29,0.03]
[1756916540605,26.0,211.33,211.29,0.03]
[1756916540792,3.28695738,211.3,211.29,0.03]
[1756916542590,0.06,211.31,211.29,0.03]
[1756916542819,3.28695738,211.3,211.29,0.03]
[1756916543195,3.99695738,211.3,211.29,0.03]
[1756916545606,3.28695738,211.3,211.29,0.03]
[1756916546618,0.06,211.31,211.29,0.03]
[1756916546817,3.28695738,211.3,211.29,0.03]
[1756916547530,5.1403167,211.3,211.29,0.03]
[1756916551342,9.87292436,211.3,211.29,0.03]
[1756916551536,10.58292436,211.3,211.29,0.03]
[1756916552910,0.06,211.31,211.29,0.03]
[1756916553111,5.1403167,211.3,211.29,0.03]
[1756916553513,5.8503167,211.3,211.29,0.03]
[1756916553726,10.58292436,211.3,211.29,0.03]
[1756916554106,9.87292436,211.3,211.29,0.03]
[1756916554309,5.1403167,211.3,211.29,0.03]
[1756916555332,37.1,211.31,211.29,0.03]
[1756916555521,5.1403167,211.3,211.29,0.73]
[1756916556403,0.06,211.31,211.29,14.32559401]
[1756916556732,0.06,211.31,211.3,13.59559401]
[1756916556916,0.06,211.31,211.3,14.29559401]
[1756916557632,0.06,211.31,211.3,19.02820167]
[1756916558424,5.2003167,211.31,211.29,0.03]
[1756916558625,5.1403167,211.3,211.29,0.03]
[1756916559009,0.06,211.31,211.29,0.03]
[1756916559210,5.1403167,211.3,211.29,0.03]
[1756916559411,5.1403167,211.3,211.29,0.73]
[1756916559611,5.1403167,211.3,211.29,5.46283165]
[1756916559921,5.1403167,211.3,211.29,0.03]
[1756916560124,5.1403167,211.3,211.29,19.05842566]
[1756916560830,5.2003167,211.31,211.3,13.59559401]
[1756916561015,5.2003167,211.31,211.3,14.29559401]
[1756916561411,0.06,211.31,211.3,14.29559401]
[1756916561616,0.06,211.31,211.3,19.02820167]
[1756916562724,0.06,211.31,211.3,29.36883507]
[1756916565335,0.06,211.31,211.3,24.22851837]
[1756916566125,5.2003167,211.31,211.29,4.76277617]
[1756916566422,5.2003167,211.31,211.3,0.68]
[1756916566842,0.06,211.31,211.3,0.68]
[1756916568236,0.06,211.31,211.3,5.41260766]
[1756916572756,0.06,211.31,211.3,10.61292436]
[1756916574349,0.06,211.31,211.3,24.20851837]
[1756916580540,0.06,211.31,211.3,23.52851837]
[1756916580745,0.06,211.31,211.3,18.32820167]
[1756916581057,0.06,211.31,211.3,18.79591071]
[1756916581262,5.9103167,211.31,211.29,0.03]
[1756916581556,5.8503167,211.3,211.29,0.03]
[1756916582534,10.58292436,211.3,211.29,0.03]
[1756916584266,5.44260766,211.3,211.29,0.03]
[1756916584466,10.58292436,211.3,211.29,0.03]
[1756916585257,30.58292436,211.3,211.29,0.03]
[1756916585559,31.1403167,211.28,211.27,0.03]
[1756916585962,31.8503167,211.28,211.27,0.03]
[1756916586550,36.58337236,211.28,211.27,0.03]
[1756916587245,73.48337236,211.28,211.27,0.03]
[1756916592079,36.58337236,211.28,211.27,0.03]
[1756916592255,20.0,211.27,211.24,0.03]
[1756916592448,5.1403167,211.26,211.24,0.03]
[1756916592763,5.8203167,211.26,211.24,0.03]
[1756916592973,42.7203167,211.26,211.24,0.03]
[1756916594270,47.45382043,211.26,211.24,0.03]
[1756916595871,46.77382043,211.26,211.24,0.03]
[1756916596378,47.45382043,211.26,211.24,0.03]
[1756916597272,46.77382043,211.26,211.24,0.03]
[1756916598967,136.23332392,211.27,211.24,0.03]
[1756916599162,68.0403167,211.26,211.24,0.03]
[1756916599366,68.0403167,211.26,211.25,0.74]
[1756916600649,31.1403167,211.26,211.25,0.74]
[1756916600850,36.9,211.26,211.25,0.74]
[1756916601049,5.1403167,211.26,211.25,0.74]
[1756916601578,5.1403167,211.26,211.25,0.03]
[1756916603162,46.77382043,211.26,211.25,0.03]
[1756916604772,9.87382043,211.26,211.25,0.03]
[1756916604974,46.77382043,211.26,211.25,0.74]
[1756916605379,46.77382043,211.26,211.25,0.03]
[1756916607363,41.63350373,211.26,211.25,0.03]
[1756916607562,46.77382043,211.26,211.25,0.03]
[1756916609492,44.925274,211.26,211.25,0.03]
[1756916615478,44.985274,211.26,211.25,0.03]
[1756916617489,26.0,211.23,211.22,0.03]
[1756916617780,69.48354054,211.23,211.2,0.03]
[1756916617977,26.0,211.18,211.16,0.03]
[1756916618181,66.19177027,211.17,211.16,0.03]
[1756916618384,70.92729141,211.17,211.16,0.03]
[1756916620796,66.19177027,211.17,211.16,0.03]
[1756916621401,3.29177027,211.17,211.16,0.74]
[1756916621590,40.19177027,211.17,211.16,0.74]
[1756916625892,40.19177027,211.17,211.16,0.03]
[1756916626424,40.19177027,211.17,211.16,0.74]
[1756916628410,3.29177027,211.17,211.16,0.74]
[1756916628613,40.19177027,211.17,211.16,0.74]
[1756916629707,3.29177027,211.17,211.16,0.74]
[1756916631107,36.9,211.19,211.16,5.4757454]
[1756916631613,36.9,211.19,211.17,0.71]
[1756916631803,36.9,211.19,211.18,0.71]
[1756916632812,40.19177027,211.19,211.18,0.71]
[1756916633314,40.19177027,211.19,211.16,0.74]
[1756916633524,3.29177027,211.17,211.16,0.03]
[1756916634091,3.29177027,211.17,211.16,0.74]
[1756916636208,71.63729141,211.17,211.16,0.03]
[1756916637730,34.73729141,211.17,211.16,0.03]
[1756916638046,71.63729141,211.17,211.16,0.03]
[1756916640337,70.92729141,211.17,211.16,0.03]
[1756916641114,71.63729141,211.17,211.16,0.03]
[1756916641340,70.92729141,211.17,211.16,0.03]
[1756916641740,3.29177027,211.17,211.16,0.74]
[1756916641923,40.19177027,211.17,211.16,0.03]
[1756916642328,66.19177027,211.17,211.16,0.03]
[1756916642521,67.63552114,211.17,211.16,0.03]
[1756916642734,70.92729141,211.17,211.16,0.03]
[1756916643343,67.63552114,211.17,211.16,0.03]
[1756916643536,70.92729141,211.17,211.16,0.03]
[1756916645149,29.29177027,211.17,211.16,0.03]
[1756916645325,66.19177027,211.17,211.16,0.03]
[1756916645649,70.92729141,211.17,211.16,0.03]
[1756916647134,71.63729141,211.17,211.16,0.03]
[1756916647639,70.92729141,211.17,211.16,0.03]
[1756916654839,71.58729141,211.17,211.16,0.03]
[1756916659242,70.92729141,211.17,211.16,0.03]
[1756916659746,71.58729141,211.17,211.16,0.03]
[1756916659938,70.92729141,211.17,211.16,0.03]
[1756916662542,71.58729141,211.17,211.16,0.03]
[1756916662952,73.48631104,211.17,211.16,0.03]
[1756916665948,73.48631104,211.17,211.14,0.03]
[1756916666123,29.29177027,211.15,211.14,0.03]
[1756916666324,66.19177027,211.15,211.14,0.03]
[1756916666733,66.85177027,211.15,211.14,0.03]
[1756916666926,66.19177027,211.15,211.14,0.03]
[1756916667127,68.09106041,211.15,211.14,0.03]
[1756916668144,73.48703009,211.15,211.14,0.03]
[1756916668644,72.82703009,211.15,211.14,0.03]
[1756916669038,73.48703009,211.15,211.14,0.03]
[1756916669421,26.0,211.12,211.11,0.03]
[1756916669651,62.9,211.12,211.11,0.03]
[1756916669853,66.19177027,211.12,211.11,0.03]
[1756916670148,70.92841293,211.12,211.11,0.03]
[1756916670750,72.82797365,211.12,211.11,0.71]
[1756916670957,32.63620338,211.12,211.11,0.71]
[1756916671129,72.82797365,211.12,211.11,0.71]
[1756916671334,72.82797365,211.12,211.11,0.03]
[1756916671642,74.68713695,211.12,211.11,0.03]
[1756916672332,37.78713695,211.12,211.11,0.71]
[1756916672526,74.68713695,211.12,211.11,0.03]
[1756916673253,75.34713695,211.12,211.11,0.03]
[1756916673430,92.33967718,211.12,211.08,0.03]
[1756916673630,10.30186714,211.09,211.08,0.03]
[1756916673948,47.20186714,211.09,211.08,0.03]
[1756916674150,49.10151808,211.09,211.08,0.03]
[1756916674846,53.83883391,211.09,211.08,0.03]
[1756916675855,57.70098118,211.09,211.08,0.03]
[1756916676029,52.55004761,211.09,211.08,0.03]
[1756916676237,48.68790034,211.09,211.08,0.03]
[1756916677361,52.56859149,211.09,211.08,0.03]
[1756916677661,48.68790034,211.09,211.08,0.03]
[1756916679055,48.68790034,211.09,211.08,0.71]
[1756916679251,48.68790034,211.09,211.08,0.03]
[1756916682458,54.54883391,211.09,211.08,0.03]
[1756916683042,16.93883391,211.09,211.08,0.03]
[1756916683539,53.83883391,211.09,211.08,0.03]
[1756916683739,16.93883391,211.09,211.08,0.03]
[1756916684050,53.83883391,211.09,211.08,0.03]
[1756916684248,16.93883391,211.09,211.08,0.03]
[1756916684468,53.83883391,211.09,211.08,0.03]
[1756916684968,16.93883391,211.09,211.08,0.03]
[1756916685263,6.63696677,211.09,211.08,0.03]
[1756916685461,53.83883391,211.09,211.08,0.73]
[1756916685666,53.83883391,211.09,211.08,0.03]
[1756916690560,6.63696677,211.09,211.08,0.03]
[1756916690759,53.83883391,211.09,211.08,0.03]
[1756916690959,6.63696677,211.09,211.08,0.03]
[1756916691162,48.68790034,211.09,211.08,0.73]
[1756916691362,72.7882494,211.09,211.08,0.73]
[1756916692148,74.68781012,211.09,211.08,0.73]
[1756916692954,74.68781012,211.09,211.08,0.03]
[1756916694460,74.68781012,211.09,211.08,0.73]
[1756916694957,53.83874369,211.09,211.08,0.03]
[1756916700380,6.63687655,211.09,211.08,0.73]
[1756916700567,48.66781012,211.09,211.08,0.73]
[1756916700764,11.78781012,211.09,211.08,0.73]
[1756916700962,48.66781012,211.09,211.08,0.73]
[1756916701372,11.78781012,211.09,211.08,0.73]
[1756916701558,48.66781012,211.09,211.08,0.73]
[1756916702390,11.78781012,211.09,211.08,0.73]
[1756916702684,5.15093357,211.09,211.08,0.73]
[1756916705470,136.29714793,211.1,211.08,0.73]
[1756916705672,5.15093357,211.09,211.08,0.03]
[1756916706283,5.15093357,211.09,211.08,0.73]
[1756916707260,9.8882494,211.09,211.08,0.73]
[1756916707784,46.7682494,211.09,211.08,0.73]
[1756916709071,42.03093357,211.09,211.08,0.73]
[1756916709483,5.15093357,211.09,211.08,0.73]
[1756916710680,9.8882494,211.09,211.08,0.03]
[1756916711482,15.03918297,211.09,211.08,0.03]
[1756916711679,16.9387437,211.09,211.08,0.03]
[1756916712082,11.78781013,211.09,211.08,0.03]
[1756916714278,16.9387437,211.09,211.08,0.03]
[1756916714597,11.78781013,211.09,211.08,0.03]
[1756916716094,17.5987437,211.09,211.08,0.03]
[1756916716597,21.54206472,211.09,211.08,0.03]
[1756916719404,21.54206472,211.09,211.07,0.03]
[1756916719615,47.16186714,211.08,211.07,0.03]
[1756916719904,47.16186714,211.08,211.05,0.03]
[1756916719905,26.0,211.06,211.05,0.03]
[1756916720200,68.01093357,211.06,211.05,0.03]
[1756916720377,72.74892276,211.06,211.05,0.03]
[1756916720774,74.64884439,211.06,211.05,0.03]
[1756916725894,75.30884439,211.06,211.04,0.03]
[1756916726208,140.59425459,211.05,211.04,0.03]
[1756916726385,141.25425459,211.05,211.04,0.03]
[1756916726784,145.33246828,211.05,211.04,0.03]
[1756916727881,182.19246828,211.05,211.04,0.03]
[1756916728484,178.24914726,211.05,211.04,0.03]
[1756916730387,5.15093357,211.04,211.02,1e-08]
[1756916730585,26.0,211.01,211.0,0.03]
[1756916730785,73.16186714,211.01,210.94,0.71]
[1756916731110,5.15093357,210.95,210.93,0.71]